Cogmind - Beta 9 @@@ ROGUE MODE // 2019.10.23 @ 19:09:40 // Halloween2019/Abominations Player: Nikolayag Result: Destroyed by Lesser Abomination with Improved EM Shotgun Performance ------------- Evolutions (1) 500 Regions Visited (2) 400 Robots Destroyed (9) 45 Value Destroyed (416) 416 Prototype IDs (1) 20 Alien Tech Used (0) 0 Bonus (0) 0 TOTAL SCORE: 1381 Bonus ------- None Cogmind --------- Core Integrity 0/400 Matter 85/300 Energy 65/100 System Corruption 4% Temperature Cool (18) Location -9/Materials Parts ------- Power (1) Propulsion (2) Utility (4) Weapon Shielding Weapon Shielding Weapon (2) Inventory (4) Light Treads Small Laser Advanced Beam Cannon Peak State ------------ Power Light Ion Engine Propulsion Light Treads Compact Wheel Utility Heat Sink Small Storage Unit Small Storage Unit Weapon Advanced Beam Cannon Light Assault Rifle Inventory Light Treads Armored Wheel Armored Wheel Armored Wheel Weapon Shielding Weapon Shielding Small Laser Autogun [Rating: 11] Favorites ----------- Power Light Ion Engine Engine Light Ion Engine Propulsion Compact Wheel Treads Light Treads Wheel Compact Wheel Utility Small Storage Unit Device Heat Sink Storage Small Storage Unit Protection Weapon Shielding Weapon Light Assault Rifle Energy Cannon Advanced Beam Cannon Ballistic Gun Light Assault Rifle Build | -11 -10 -9 ------- Run | Scr Mat Mat Slots Evolved 2 | . . 2 Power . | . . . Propulsion . | . . . Utility 2 | . . 2 Weapon . | . . . Parts Attached 19 | 7 4 8 Power 2 | 1 1 . Engine 2 | 1 1 . Core . | . . . Reactor . | . . . Propulsion 5 | 2 1 2 Treads 1 | . 1 . Leg . | . . . Wheel 4 | 2 . 2 Hover . | . . . Flight . | . . . Utility 5 | 2 . 3 Device 1 | . . 1 Storage 2 | 2 . . Processor . | . . . Hackware . | . . . Protection 2 | . . 2 Artifact . | . . . Weapon 7 | 2 2 3 Energy Gun . | . . . Energy Cannon 1 | . . 1 Ballistic Gun 6 | 2 2 2 Ballistic Cannon . | . . . Launcher . | . . . Special Weapon . | . . . Impact Weapon . | . . . Slashing Weapon . | . . . Piercing Weapon . | . . . Special Melee Weapon . | . . . Unidentified Prototypes 1 | . . 1 Parts Lost 4 | . 2 2 Power 1 | . . 1 Propulsion 2 | . 1 1 Utility . | . . . Weapon 1 | . 1 . Highest Loss Streak 1 | . 1 1 Average Slot Usage (%) 86 | . 93 81 Engine 10 | . 12 9 Treads 9 | . 7 11 Wheel 14 | . 20 11 Device 3 | . . 6 Storage 24 | . 28 22 Energy Cannon 3 | . . 6 Ballistic Gun 18 | . 23 15 Naked Turns 1 | . . 1 Heaviest Build 17 | 14 14 17 Greatest Support 32 | 32 32 16 Greatest Overweight (x) 2 | . . 2 Average Overweight (x) . | . . . Largest Inventory Capacity 8 | 8 8 8 Average Capacity 7 | 5 8 7 Most Carried 8 | 4 7 8 Average Carried 6 | 2 5 7 Final Capacity 4 | . . 4 Final Carried 3 | . . 3 Class Distribution -------------------- 100% | Mutant Dominant Class ---------------- Mutant | -10/Materials Mutant | -9/Materials Resources | -11 -10 -9 ----------- Run | Scr Mat Mat Matter Collected 361 | 124 70 167 Remotely . | . . . Salvage Created 469 | 81 140 248 Parts 20 | 2 3 15 Haulers Intercepted . | . . . Recyclers Shooed . | . . . Parts Field Recycled . | . . . Retrieved Matter . | . . . Parts Self-Destructed . | . . . Prevented . | . . . Kills | -11 -10 -9 ------- Run | Scr Mat Mat Combat Hostiles Destroyed 7 | . 3 4 Guns 5 | . 3 2 Cannons 2 | . . 2 Classes Destroyed 4 | 1 1 2 Recycler 1 | 1 . . Operator 1 | . . 1 Grunt 1 | . . 1 Abomination 6 | . 3 3 Best Kill Streak 2 | 1 1 2 Combat Bots Only 1 | . 1 1 Max Kills in Single Turn 1 | 1 1 1 Gunslinging . | . . . Exploded . | . . . Melee . | . . . Uniques/NPCs Destroyed . | . . . Combat | -11 -10 -9 -------- Run | Scr Mat Mat Damage Taken 1651 | . 476 1175 Core 494 | . 91 403 Absorbed by Shields . | . . . Core Remaining (%) 81 | 100 63 . Volleys Fired 60 | 5 11 44 Largest 2 | 2 2 2 Hottest 88 | 40 40 88 Shots Fired 120 | 10 22 88 Gun 104 | 10 22 72 Cannon 16 | . . 16 Launcher . | . . . Special . | . . . Kinetic 104 | 10 22 72 Thermal 16 | . . 16 Explosive . | . . . Electromagnetic . | . . . Robot Hit Streak 14 | 5 14 8 Robot Miss Streak 4 | 2 4 2 Penetration Max . | . . . Secondary Targets . | . . . Shots Hit Robots 86 | 6 15 65 Core Hits 31 | 2 9 20 Critical Hits 3 | . 1 2 Critical Kills 1 | . 1 . Critical Parts Destroyed 2 | . . 2 Melee Attacks . | . . . Impact . | . . . Slashing . | . . . Piercing . | . . . Sneak Attacks . | . . . Combat Hostiles . | . . . Follow-up Attacks . | . . . Damage Inflicted 1116 | 81 151 884 Guns 806 | 81 151 574 Cannons 294 | . . 294 Explosions . | . . . Melee . | . . . Ramming 16 | . . 16 Kinetic 806 | 81 151 574 Thermal 294 | . . 294 Explosive . | . . . Electromagnetic . | . . . Impact . | . . . Slashing . | . . . Piercing . | . . . Highest Corruption 4 | . 4 3 Average Corruption 2 | . 3 1 Corruption Purged . | . . . Effects 3 | . 1 2 Data Loss (minor) 1 | . 1 . Targeting Errors 2 | . . 2 Overload Shots . | . . . Overflow Damage . | . . . Projectiles . | . . . Explosions . | . . . Melee . | . . . Knockbacks . | . . . Impact . | . . . Kinetic . | . . . Secondary . | . . . Self-Inflicted Damage 8 | . . 8 Shots . | . . . Rammed 2 | . . 2 Targets Rammed 2 | . . 2 Kicked . | . . . Crushed . | . . . Highest Temperature 469 | . . 469 Average Temperature 151 | . . 151 Received Heat Transfer 372 | . . 372 Effects 3 | . . 3 Shutdowns 1 | . . 1 Matter Decay 1 | . . 1 Short Circuit 1 | . . 1 Siege Activations . | . . . Robots Corrupted . | . . . Combat Hostiles . | . . . Parts Fried . | . . . Impact Corruptions . | . . . Robots Melted . | . . . Combat Hostiles . | . . . Parts Melted . | . . . Heat Transferred 164 | . . 164 Parts Sabotaged . | . . . Parts Stolen . | . . . Parts Stripped . | . . . Power Chain Reactions . | . . . Missiles Intercepted . | . . . Alert | -11 -10 -9 ------- Run | Scr Mat Mat Peak Influence 112 | 5 33 112 Average Influence 50 | 1 12 84 Maximum Alert Level . | . . . Low Security (%) 100 | . . . Level 1 . | . . . Level 2 . | . . . Level 3 . | . . . Level 4 . | . . . Level 5 . | . . . High Security . | . . . Max Security . | . . . Squads Dispatched 5 | . 1 4 Investigation . | . . . Extermination . | . . . Reinforcement 5 | . 1 4 Assault . | . . . Garrison . | . . . Intercept . | . . . Construction Impeded . | . . . Haulers Reinforced . | . . . Stealth | -11 -10 -9 --------- Run | Scr Mat Mat Distress Signals 8 | . 2 6 Communications Jammed . | . . . Distress Signals . | . . . Times Spotted 22 | . 10 12 Peak Tracking Total 8 | . 5 8 Tactical Retreats 4 | . 3 1 Traps | -11 -10 -9 ------- Run | Scr Mat Mat Traps Triggered . | . . . Indirectly . | . . . Trap Hack Attempts . | . . . Triggered . | . . . Disarmed . | . . . Reprogrammed . | . . . Reused . | . . . Traps Extracted . | . . . Installed . | . . . Triggered . | . . . Machines | -11 -10 -9 ---------- Run | Scr Mat Mat Machines Disabled . | . . . Max in Single Turn . | . . . Machines Sabotaged . | . . . Garrisons Compromised . | . . . Overloaded Fab Kills . | . . . Fab Network Shutdowns . | . . . Hacking | -11 -10 -9 --------- Run | Scr Mat Mat Machines Accessed 2 | . 1 1 Terminals 2 | . 1 1 Fabricators . | . . . Repair Stations . | . . . Recycling Units . | . . . Scanalyzers . | . . . Garrison Access . | . . . Total Hacks 26 | . 5 21 Successful 6 | . 2 4 Failed 20 | . 3 17 Catastrophic 5 | . 1 4 Database Lockouts . | . . . Manual 22 | . 1 21 Terminals 26 | . 5 21 Fabricators . | . . . Repair Stations . | . . . Recycling Units . | . . . Scanalyzers . | . . . Garrison Access . | . . . Terminal Hacks 2 | . 1 1 Zone Layout 2 | . 1 1 Fabricator Hacks . | . . . Repair Station Hacks . | . . . Recycling Unit Hacks . | . . . Scanalyzer . | . . . Garrison Access Hacks . | . . . Unauthorized Hacks 23 | . 2 21 Terminals 4 | . 1 3 Track 1 | . . 1 Botnet 2 | . 1 1 Operators 1 | . . 1 Fabricators . | . . . Repair Stations . | . . . Recycling Units . | . . . Scanalyzers . | . . . Garrison Access . | . . . Data Cores Recovered . | . . . Used . | . . . Hacking Detections 2 | . 1 1 Full Trace Events . | . . . Feedback Events . | . . . Feedback Blocked . | . . . Robot Schematics Acquired . | . . . Robots Built . | . . . Matter . | . . . Time . | . . . Total Robot Build Rating . | . . . Part Schematics Acquired . | . . . Parts Built . | . . . Matter . | . . . Time . | . . . Total Part Build Rating . | . . . Parts Repaired . | . . . Time . | . . . Parts Recycled . | . . . Recycled Matter . | . . . Retrieved Matter . | . . . Retrieved Components . | . . . Parts Scanalyzed . | . . . Part Schematics Acquired . | . . . Parts Damaged . | . . . Bothacking | -11 -10 -9 ------------ Run | Scr Mat Mat Used RIF Installer . | . . . Robots Hacked . | . . . Non-combat . | . . . Combat . | . . . Robot Hacks Applied . | . . . Relay Couplers Released . | . . . Robots Rewired . | . . . Allies Hacked . | . . . Hacks Repelled . | . . . Allies | -11 -10 -9 -------- Run | Scr Mat Mat Total Allies . | . . . Largest Group . | . . . Highest-Rated Group . | . . . Highest-Rated Ally . | . . . Total Orders . | . . . Ally Attacks . | . . . Total Damage . | . . . Kills . | . . . Allies Corrupted . | . . . Allies Melted . | . . . Intel | -11 -10 -9 ------- Run | Scr Mat Mat Robot Analysis Total . | . . . Derelict Logs Recovered . | . . . Drone Launches . | . . . Drone Recoveries . | . . . Exploration | -11 -10 -9 ------------- Run | Scr Mat Mat Turns Passed 654 | 75 218 361 Spaces Moved 441 | 47 178 216 Core 5 | 3 . 2 Treads . | . . . Legs . | . . . Wheels 436 | 44 178 214 Hover . | . . . Flight . | . . . Fastest Speed 50 | 50 100 50 Average Speed 101 | 96 100 102 Slowest Speed 150 | 100 100 150 Overloaded Moves . | . . . Propulsion Burnouts . | . . . Robots Hopped . | . . . Cave-ins Triggered . | . . . Exploration Rate (%) 29 | 4 57 26 Regions Visited 2 Branch Regions . Pre-discovered Areas . | . . . Known Exits Taken . | . . . Unknown Exits Taken 2 | 1 1 . Scrap Searched . | . . . Spaces Dug . | . . . Terrain Destroyed . | . . . Melee . | . . . Projectile . | . . . AOE . | . . . Actions | -11 -10 -9 --------- Run | Scr Mat Mat Total 542 | 64 197 281 Wait 8 | 2 . 6 Move 439 | 46 177 216 Hop . | . . . Pick Up 11 | 4 5 2 Fast Attach 12 | 7 2 3 Attach 5 | . 2 3 Detach 1 | . . 1 Swap 2 | . . 2 Drop 2 | . . 2 Fire 60 | 5 11 44 Melee . | . . . Ram 2 | . . 2 Kick . | . . . Crush . | . . . Escape Stasis . | . . . Rewire . | . . . Trap . | . . . Miscellaneous . | . . . Route ------- -11/Scrapyard -10/Materials -9/Materials History --------- Turn | Location | Event 12 | -11/Scrapyard | Discovered new exit (range 15) 76 | -11/Scrapyard | Entered Materials 244 | -10/Materials | Discovered new exit (range 8) 285 | -10/Materials | Discovered new exit (range 10) 294 | -10/Materials | Entered another Materials area 294 | -9/Materials | Evolved 2 slots: Utility x2 321 | -9/Materials | Build established: Mutant 638 | -9/Materials | Core integrity fell below 50% 653 | -9/Materials | Core integrity fell below 20% 653 | -9/Materials | Released all parts (2) 655 | -9/Materials | Destroyed by Lesser Abomination with Improved EM Shotgun Last Messages --------------- 00620_ Lesser Abomination absorbs Lgt. Ion Engine. 00636_ System corrupted: Lgt. Assault Rifle targeting data glitched. 00638_ Minor Abomination spits out Shock Rifle. 00638_ Minor Abomination absorbs Shock Rifle. 00640_ Lesser Abomination sheds Ice Anomaly. 00644_ System corrupted: Lgt. Assault Rifle targeting data glitched. 00650_ Hit by a wave of energy. 00650_ Autogun ripped off. 00650_ Lgt. Assault Rifle ripped off. 00650_ Lgt. Treads ripped off. 00652_ Lesser Abomination absorbs Lgt. Treads. 00652_ Hit by a wave of energy. 00652_ Arm. Wheel ripped off. 00652_ Heat Sink ripped off. 00652_ Unstable Anomaly suddenly flashes brightly. 00652_ Engulfed by violent ripples tearing at the fabric of space. 00653_ Lesser Abomination absorbs Heat Sink. 00653_ Released Sml. Storage Unit. 00654_ Acquired Weapon Shielding. 00655_ Minor Abomination absorbs Sml. Storage Unit. Map ----- +----------------------------------------------------+ | ?????????????????????????????????????????????????? | | ?????????????????????????????????????????????????? | | ?????????????????????????????????????????????????? | | ?????????????????????????????????????????????????? | | ?????????????????????????????????????????????????? | | ?????????????????????????????????????????????????? | | ?????????????????????????????????????????????????? | | ?????????????????????????????????????????????????? | | ??????????????#??????????????????????????????????? | | ??????????? % ?????????????????????????????????? | | ???????????? ?????????????????????????????????? | | ???????????? ?????????????????????????????????? | | ?????????##"# ????? ???????????????????????????? | | ????????###"# ;???? ???????????????????????????? | | ??????? ## ;;???? ????????????????????????? | | ?????? """ "# ;; """ "" ???????????????????????? | | ????? """ "# ;; """ ""????????????????????????? | | ??## """ ## ;; S????????????????????????? | | ## # ## ;; ??##???????????##???????? | | #####+### n;;;;;;#;##;######+### ??????? | | ""### % % ??????? | | % % ??????? | | ""#"# % ""???????? | | "" # #### #####;;;;;;A ###+### "????????? | | #### ##### ######;;;;=A A #?????????????????? | | ##?# ## # ## % @[[A #?????????????????? | | # # % ### " ## =! A% #?????????????????? | | #### #?# " ## =; #?????????????????? | | + %## " ## % ; #?????????????????? | | #### ### " ########;;;; #?????????????????? | | #####/###""" ##????? ## ; #?????????????????? | | ## # #????##? ; #?????????????????? | | ## """"" #% #???????# ; #?????????????????? | | ##% """"" / #???????# ; %#?????????????????? | | ## """"" # #???????" ; #?????????????????? | | ## # #???????# ; #?????????????????? | | ### """" #######???????? ; #?????????????????? | | ??# """" #?????????????? ; #?????????????????? | | ??# """"" #?????????????? ; #?????????????????? | | ??# #?????????????? ;% #?????????????????? | | ?????#####+#?????????????? ;% #?????????????????? | | ?????????????????????????? " #?????????????????? | | ???????????????????????????? ??????????????????? | | ?????????????????????????????????????????????????? | | ?????????????????????????????????????????????????? | | ?????????????????????????????????????????????????? | | ?????????????????????????????????????????????????? | | ?????????????????????????????????????????????????? | | ?????????????????????????????????????????????????? | | ?????????????????????????????????????????????????? | +----------------------------------------------------+ Best States ------------- Heat Dissipation 38 Energy Generation 10 Energy Capacity 125 Matter Stores 200 Matter Capacity 300 Sight Range 16 Terrain Scan Density 10 Evasion (%) 40 Recoil Reduction 1 Item Schematics ----------------- None Robot Schematics ------------------ None Fabricated ------------ Nothing Alien Tech Used ----------------- None Achievements -------------- None Challenges ------------ None Game ------ Seed DisruptionCloakCleaver Manual? 0 Play Time 00:09:56 Cumulative 159.8 hours Start 2019.10.23 @ 19:03:14 End 2019.10.23 @ 19:09:40 Sessions 1 Manual Loads 0 Difficulty Rogue Special Mode Halloween2019/Abominations Game No. 172 Rogue 172 Adventurer 0 Explorer 0 Win Type - Total 3 Types 3/0/0/0/0/0/0 Lore% 49 Gallery% 67 Achievement% 42 Wizard Run 0 Options --------- ASCII 0 Keyboard 1 Movement Numpad Keybinds 0 Fullscreen 1 Font 18/SmallcapsGlow Map View 76x50 Tactical HUD 1 Map Filters NONE Filters NONE Steam 1 RUN: f3340cc8-c024-45b9-b82b-43e9fa848326